bitfinex-derivatives/quotes_SOLF0:USTF0_20250312
["timestamp","ask_amount","ask_price","bid_price","bid_amount"]
[1741791955847,0.05390296,123.8,123.77,8.14248852]
[1741791956042,0.05390296,123.8,123.77,0.06178852]
[1741791956247,0.05390296,123.8,123.7,43.52]
[1741791956446,43.5,123.8,123.69,33.70977069]
[1741791956747,33.70977069,123.79,123.69,33.70977069]
[1741791957050,46.3675,123.8,123.69,33.70977069]
[1741791957256,46.3675,123.8,123.7,43.4]
[1741791957453,0.05844966,123.76,123.74,8.0828]
[1741791958049,0.05844966,123.76,123.7,43.4]
[1741791958447,8.14024966,123.76,123.7,43.4]
[1741791958646,0.05844966,123.76,123.73,8.0831]
[1741791958855,0.05844966,123.76,123.7,43.4]
[1741791959747,0.05844966,123.76,123.71,33.70977069]
[1741791959947,0.05844966,123.76,123.75,8.0822]
[1741791960858,2.7752,123.83,123.79,8.0792]
[1741791961051,2.7752,123.83,123.75,98.15677069]
[1741791961554,2.7752,123.83,123.75,64.447]
[1741791961851,10.8524,123.83,123.75,64.447]
[1741791962051,0.0537675,123.8,123.78,0.05869446]
[1741791962446,0.0537675,123.8,123.79,8.0796]
[1741791962650,0.0537675,123.8,123.78,0.05869446]
[1741791963148,0.0537675,123.8,123.78,8.13859446]
[1741791963351,0.0537675,123.8,123.78,0.05869446]
[1741791964657,0.0537675,123.8,123.79,8.0796]
[1741791965759,0.0537675,123.8,123.78,0.05869446]
[1741791965959,0.0537675,123.8,123.79,8.0796]
[1741791966356,2.6252,123.84,123.78,43.15869446]
[1741791966760,2.6191,123.87,123.78,43.15869446]
[1741791966761,33.70977069,123.86,123.78,0.05869446]
[1741791966960,2.7501,123.83,123.78,0.05869446]
[1741791967164,2.7501,123.83,123.72,2.4466]
[1741791967461,33.70977069,123.78,123.69,242.42]
[1741791967765,43.1,123.81,123.7,43.1]
[1741791968065,8.0806,123.78,123.7,51.185]
[1741791968267,48.4692,123.81,123.7,43.1]
[1741791968465,82.17897069,123.81,123.7,43.1]
[1741791968666,0.05159179,123.77,123.74,0.06027633]
[1741791969167,8.0822,123.75,123.74,0.06027633]
[1741791969365,0.05159179,123.77,123.74,0.06027633]
[1741791970865,8.0822,123.75,123.74,0.06027633]
[1741791971065,0.05159179,123.77,123.69,242.42]
[1741791971266,76.72977069,123.76,123.63,594.81061576]
[1741791971566,2.6006,123.75,123.65,4.6893]
[1741791971869,8.0839,123.73,123.66,8.0877]
[1741791972060,2.6006,123.75,123.65,47.6893]
[1741791972258,0.053048,123.71,123.65,47.6893]
[1741791973662,0.053048,123.71,123.65,109.6893]
[1741791974062,0.053048,123.71,123.65,117.7776]
[1741791974263,0.053048,123.71,123.65,109.6893]
[1741791974560,0.053048,123.71,123.66,8.0875]
[1741791974766,0.053048,123.71,123.66,42.76]
[1741791976167,8.0858,123.7,123.66,42.76]
[1741791976363,0.053048,123.71,123.66,42.76]
[1741791977958,0.053048,123.71,123.65,45.2113]
[1741791978162,0.053048,123.71,123.63,244.7381]
[1741791978362,33.70977069,123.72,123.63,287.5381]
[1741791978570,0.05471967,123.68,123.63,287.5381]
[1741791978760,8.0877,123.67,123.63,287.5381]
[1741791978965,0.05471967,123.68,123.63,244.7381]
[1741791979165,0.05471967,123.68,123.57,43.0]
[1741791979166,33.76449036,123.68,123.57,43.0]
[1741791979464,33.70977069,123.68,123.58,47.6855]
[1741791979667,0.05906842,123.64,123.59,43.0]
[1741791979962,0.05906842,123.64,123.56,43.06]
[1741791980267,33.70977069,123.66,123.57,8.0938]
[1741791980268,8.0911,123.62,123.57,8.0938]
[1741791980468,0.05258506,123.61,123.57,8.0938]
[1741791980669,0.05258506,123.61,123.56,43.06]
[1741791980869,0.05258506,123.61,123.56,51.1542]
[1741791981170,0.05258506,123.61,123.56,8.0942]
[1741791981363,8.14418506,123.61,123.56,51.1142]
[1741791981667,0.05258506,123.61,123.56,43.02]
[1741791982164,0.05258506,123.61,123.56,105.02]
[1741791982364,8.0876,123.67,123.58,33.70977069]
[1741791982564,5.4918,123.69,123.58,33.70977069]
[1741791983065,8.0885,123.66,123.58,33.70977069]
[1741791983267,33.70977069,123.68,123.56,76.72977069]
[1741791983469,33.70977069,123.66,123.57,43.0]
[1741791983669,0.06198121,123.63,123.61,0.05805719]
[1741791985069,0.06198121,123.63,123.61,43.01805719]
[1741791985967,0.06198121,123.63,123.61,51.10905719]
[1741791986171,0.06198121,123.63,123.61,43.01805719]
[1741791986776,0.06198121,123.63,123.61,0.05805719]
[1741791987673,8.0907,123.62,123.61,0.05805719]
[1741791987970,0.06198121,123.63,123.55,242.52]
[1741791988273,10.6778,123.62,123.57,8.0937]
[1741791988669,10.6778,123.62,123.58,8.0932]
[1741791988873,8.0917,123.61,123.55,242.52]
[1741791989169,0.05978097,123.61,123.55,242.52]
[1741791989773,0.05978097,123.61,123.53,42.7]
[1741791989774,0.05978097,123.61,123.53,42.66]
[1741791989974,8.0923,123.6,123.53,42.66]
[1741791990171,0.05803901,123.58,123.53,104.66]
[1741791991478,0.05803901,123.58,123.57,8.094]
[1741791992872,3.901e-05,123.58,123.57,8.094]
[1741791993070,3.901e-05,123.58,123.57,50.994]
[1741791993679,2.8503,123.65,123.57,76.60977069]
[1741791993974,10.9391,123.65,123.57,76.60977069]
[1741791994176,2.8503,123.65,123.61,8.0908]
[1741791994475,10.9395,123.65,123.57,76.60977069]
[1741791994676,2.8503,123.65,123.57,42.9]
[1741791994873,0.05679563,123.62,123.6,0.05805993]
[1741791995975,0.05679563,123.62,123.56,8.0943]
[1741791996175,8.0916,123.61,123.53,95.70977069]
[1741791996378,33.70977069,123.62,123.51,38.48397069]
[1741791996674,8.0931,123.59,123.51,38.48397069]
[1741791997076,2.6075,123.6,123.51,38.48397069]
[1741791997279,0.06079994,123.56,123.51,52.4851]
[1741791997470,0.06079994,123.56,123.54,8.0955]
[1741791997676,0.06079994,123.56,123.5,1.40830821]
[1741791998075,0.06079994,123.56,123.44,33.70977069]
[1741791998377,33.70977069,123.54,123.45,51.28]
[1741791998575,33.70977069,123.52,123.45,51.28]
[1741791998880,0.05571674,123.51,123.42,314.60148433]
[1741791999070,0.05571674,123.51,123.44,33.70977069]
[1741791999276,33.70977069,123.57,123.45,62.0]
[1741791999575,33.70977069,123.57,123.43,53.3]
[1741791999576,0.05252276,123.49,123.43,8.1031]
[1741791999775,33.70977069,123.49,123.42,38.04401364]
[1741792000079,0.0516647,123.47,123.43,53.86]
[1741792001180,242.8,123.57,123.43,53.86]
[1741792001181,33.70977069,123.58,123.45,33.70977069]
[1741792001381,5.6253,123.59,123.48,33.70977069]
[1741792001581,5.6253,123.59,123.44,244.20919214]
[1741792001582,33.70977069,123.56,123.44,244.20919214]
[1741792001777,2.6193,123.55,123.4,33.70977069]
[1741792001977,33.70977069,123.52,123.4,33.70977069]
[1741792002187,33.70977069,123.5,123.39,33.70977069]
[1741792002587,0.05685087,123.47,123.45,0.0536581]
[1741792003887,2.7943,123.51,123.45,33.76342879]
[1741792004288,2.7943,123.51,123.45,0.0536581]
[1741792004986,8.0993,123.49,123.45,0.0536581]
[1741792005184,8.15188819,123.49,123.45,0.0536581]
[1741792005582,0.05258819,123.49,123.45,0.0536581]
[1741792006793,8.15218819,123.49,123.45,0.0536581]
[1741792007097,33.76235888,123.49,123.45,0.0536581]
[1741792007301,5.4118,123.48,123.42,242.86]
[1741792007793,5.4118,123.48,123.24,91.43588433]
[1741792007794,39.12157069,123.48,123.35,35.99085815]
[1741792008000,2.7943,123.51,123.42,33.70977069]
[1741792008297,2.7591,123.5,123.42,33.70977069]
[1741792008502,0.05597937,123.48,123.45,33.76662156]
[1741792008691,2.712,123.53,123.46,54.38]
[1741792008897,2.823,123.56,123.51,8.0973]
[1741792009195,2.823,123.56,123.48,33.70977069]
[1741792009495,2.712,123.59,123.51,33.70977069]
[1741792009799,2.823,123.6,123.52,54.26]
[1741792009996,0.05335436,123.56,123.54,33.76102802]
[1741792010499,0.05335436,123.56,123.54,0.05125733]
[1741792013108,41.86312505,123.56,123.41,242.92]
[1741792013298,33.70977069,123.54,123.43,56.566]
[1741792013498,5.6444,123.53,123.43,56.566]
[1741792014201,5.6444,123.53,123.47,0.05205312]
[1741792014202,0.05190559,123.49,123.47,0.05205312]
[1741792017307,8.15190559,123.49,123.4,53.72]
[1741792017508,55.28400594,123.5,123.4,53.72]
[1741792017710,8.1019,123.45,123.4,61.805]
[1741792018004,55.28400594,123.5,123.37,60.43250594]
[1741792018207,55.28400594,123.48,123.4,8.1051]
[1741792018405,0.05274719,123.45,123.4,8.1051]
[1741792018807,8.15504719,123.45,123.4,8.1051]
[1741792019305,0.05274719,123.45,123.38,53.72]
[1741792019608,0.05274719,123.45,123.39,55.28400594]
[1741792020203,0.05274719,123.45,123.37,242.96]
[1741792020403,0.05274719,123.45,123.39,55.28400594]
[1741792020602,0.05382991,123.42,123.41,55.28400594]
[1741792020806,2.7422,123.47,123.41,55.28400594]
[1741792021009,108.82400594,123.55,123.45,55.28400594]
[1741792021306,55.28400594,123.51,123.4,108.86400594]
[1741792021804,55.28400594,123.5,123.4,108.86400594]
[1741792022011,55.28400594,123.5,123.38,0.218]
[1741792022012,55.33619629,123.48,123.45,6.651e-05]
[1741792022213,55.28400594,123.46,123.45,6.651e-05]
[1741792022410,63.38520594,123.46,123.45,6.651e-05]
[1741792022606,71.48520594,123.46,123.45,6.651e-05]
[1741792023409,16.2012,123.46,123.45,6.651e-05]
[1741792023707,0.05219035,123.48,123.45,6.651e-05]
[1741792024107,63.43619629,123.48,123.45,6.651e-05]
[1741792024908,55.33619629,123.48,123.45,6.651e-05]
[1741792025311,8.1012,123.46,123.45,6.651e-05]
[1741792025507,0.05219035,123.48,123.45,6.651e-05]
[1741792026200,55.33619629,123.48,123.45,6.651e-05]
[1741792026907,55.28400594,123.46,123.45,6.651e-05]
[1741792027305,71.48520594,123.46,123.45,6.651e-05]
[1741792028406,8.1062,123.39,123.37,242.96]
[1741792028607,108.90400594,123.44,123.35,2.28108746]
[1741792028809,8.3565,123.43,123.35,2.28108746]
[1741792029608,0.05228842,123.4,123.35,2.28108746]
[1741792030101,8.1065,123.38,123.35,2.28108746]
[1741792030306,0.05228842,123.4,123.35,2.28108746]
[1741792030911,0.05228842,123.4,123.36,55.28400594]
[1741792031507,0.05228842,123.4,123.35,111.0650934]
[1741792031908,0.05228842,123.4,123.39,8.1058]
[1741792032113,2.8265,123.47,123.39,298.40400594]
[1741792032309,10.9274,123.47,123.43,8.1027]
[1741792032514,10.82928452,123.49,123.41,55.28400594]
[1741792032711,8.1002,123.48,123.41,55.28400594]
[1741792032909,10.82928452,123.49,123.41,55.28400594]
[1741792033304,0.05928549,123.46,123.44,0.05271353]
[1741792033509,0.05928549,123.46,123.45,8.1019]
[1741792034008,10.82928452,123.49,123.46,8.1008]
[1741792034208,10.82928452,123.49,123.45,54.28]
[1741792035208,0.05226977,123.48,123.45,54.28]
[1741792036018,0.05226977,123.48,123.44,0.05271353]
[1741792036718,0.05226977,123.48,123.44,8.15511353]
[1741792036915,0.05226977,123.48,123.44,0.05271353]
[1741792037118,0.05226977,123.48,123.46,34.01262951]
[1741792037512,0.05226977,123.48,123.47,8.1005]
[1741792038014,2.7463,123.53,123.49,8.099]
[1741792038318,8.0974,123.52,123.47,54.26]
[1741792038511,2.7463,123.53,123.47,54.26]
[1741792038714,10.8432,123.53,123.47,54.26]
[1741792038911,29.9228,123.55,123.52,34.01262951]
[1741792039214,208.97589696,123.58,123.54,34.01262951]
[1741792039413,332.714736,123.6,123.57,34.01262951]
[1741792039615,332.714736,123.6,123.58,8.0933]
[1741792039813,137.26020382,123.59,123.58,62.2733]
[1741792040007,87.1719548,123.59,123.58,62.2733]
[1741792040213,87.1719548,123.59,123.58,8.0933]
[1741792040412,87.1719548,123.59,123.58,62.2133]
[1741792041015,87.1719548,123.59,123.57,0.05965892]
[1741792041212,0.05383058,123.6,123.57,0.05965892]
[1741792041814,0.05383058,123.6,123.57,34.07228843]
[1741792042211,0.05383058,123.6,123.57,0.05965892]
[1741792044816,8.0933,123.58,123.57,0.05965892]
[1741792045413,8.1,123.58,123.52,33.37951364]
[1741792045613,55.16450793,123.57,123.52,33.37951364]
[1741792045825,55.16450793,123.57,123.49,242.94]
[1741792046028,8.0982,123.51,123.49,242.94]
[1741792046324,53.34,123.58,123.48,122.39155003]
[1741792046325,55.16450793,123.53,123.48,122.39155003]
[1741792046527,8.0992,123.49,123.48,122.39155003]
[1741792047824,8.0992,123.49,123.48,5.003e-05]
[1741792048520,8.0999,123.48,123.47,0.05720933]
[1741792049123,8.103,123.44,123.41,242.94]
[1741792049323,55.16450793,123.47,123.41,242.94]
[1741792049526,55.16450793,123.47,123.37,252.48470405]
[1741792049924,55.16450793,123.47,123.36,272.29486117]
[1741792050118,55.16450793,123.45,123.36,53.4423]
[1741792050317,55.22439607,123.43,123.4,0.05852395]
[1741792050520,55.22439607,123.43,123.35,245.24108746]
[1741792050723,55.22439607,123.43,123.35,2.28108746]
[1741792050724,55.16450793,123.39,123.35,2.28108746]
[1741792050926,8.1078,123.36,123.35,2.28108746]
[1741792051527,63.12,123.41,123.35,2.28108746]
[1741792051826,0.06054237,123.37,123.35,2.28108746]
[1741792052420,0.06054237,123.37,123.35,2.332225]
[1741792053026,8.1094,123.34,123.28,243.0]
[1741792053223,0.06054237,123.37,123.28,243.0]
[1741792053420,2.7807,123.41,123.3,55.16450793]
[1741792053624,2.7807,123.41,123.3,63.27560793]
[1741792053926,2.7807,123.41,123.33,55.16450793]
[1741792054127,2.7807,123.41,123.34,2.6844]
[1741792054327,2.7807,123.41,123.32,68.28]
[1741792054328,0.06058923,123.38,123.32,68.28]
[1741792054628,55.22509716,123.38,123.28,243.0]
[1741792055023,55.16450793,123.38,123.28,243.0]
[1741792055327,0.05179457,123.34,123.28,243.0]
[1741792055521,0.05179457,123.34,123.28,298.16450793]
[1741792055828,0.05179457,123.34,123.31,55.16450793]
[1741792056135,55.16450793,123.48,123.32,312.28]
[1741792056429,8.1053,123.4,123.34,55.16450793]
[1741792056618,2.8124,123.46,123.36,55.16450793]
[1741792057127,0.05575833,123.42,123.4,0.05384333]
[1741792058328,8.1045,123.41,123.4,4.333e-05]
[1741792058628,0.05575833,123.42,123.4,4.333e-05]
[1741792059023,5.6056,123.5,123.4,243.16004333]
[1741792059228,8.1,123.48,123.4,251.26454333]
[1741792059428,55.16450793,123.47,123.4,243.16]
[1741792059729,8.1024,123.45,123.4,243.16]
[1741792059926,55.16450793,123.49,123.4,243.16]
[1741792060430,0.06147177,123.46,123.43,0.05580166]
[1741792062529,8.1024,123.45,123.43,0.05580166]
[1741792063030,8.1021,123.45,123.43,0.05580166]
[1741792063237,0.06147177,123.46,123.43,0.05580166]
[1741792063633,8.1023,123.45,123.43,0.05580166]
[1741792064133,0.06147177,123.46,123.43,0.05580166]
[1741792064335,55.16450793,123.45,123.43,4.333e-05]
[1741792064832,8.1025,123.44,123.43,4.333e-05]
[1741792065131,10.8025,123.44,123.43,4.333e-05]
[1741792065326,0.06147177,123.46,123.43,4.333e-05]
[1741792065726,8.1024,123.45,123.43,4.333e-05]
[1741792065937,0.06147177,123.46,123.43,4.333e-05]
[1741792067230,25.19,123.53,123.43,67.94004333]
[1741792067534,55.16450793,123.52,123.43,67.94]
[1741792067837,123.38450793,123.52,123.42,243.16]
[1741792068233,55.16450793,123.5,123.42,243.16]
[1741792068431,55.16450793,123.48,123.42,243.16]
[1741792068631,8.1015,123.46,123.42,243.16]
[1741792068831,55.16450793,123.48,123.39,71.0765]
[1741792069227,0.06220544,123.45,123.43,0.05884578]
[1741792070235,8.1025,123.44,123.43,0.05884578]
[1741792070445,0.06220544,123.45,123.43,0.05884578]
[1741792071231,8.1025,123.44,123.43,0.05884578]
[1741792071635,55.16450793,123.44,123.36,245.8957]
[1741792071839,2.6661,123.43,123.31,2.7479]
[1741792072039,55.16450793,123.4,123.31,5.424]
[1741792072539,67.96,123.41,123.3,243.12]
[1741792072745,55.16450793,123.36,123.3,243.12]
[1741792073441,8.1111,123.31,123.25,88.72562386]
[1741792073640,73.3668,123.35,123.25,88.72562386]
[1741792073934,70.5801,123.35,123.26,2.6761]
[1741792074139,0.05564964,123.31,123.27,55.16450793]
[1741792074737,0.05564964,123.31,123.3,8.1117]
[1741792075743,67.76,123.39,123.28,67.56]
[1741792075946,2.7401,123.4,123.29,55.16450793]
[1741792076351,8.1075,123.37,123.32,8.1102]
[1741792076543,2.7401,123.4,123.32,8.1102]
[1741792076940,0.0577736,123.37,123.29,55.16450793]
[1741792077145,0.0577736,123.37,123.35,0.05598958]
[1741792077346,2.7401,123.4,123.29,56.57538547]
[1741792077641,0.05576895,123.34,123.33,0.0532262]
[1741792077844,55.16450793,123.39,123.33,0.0532262]
[1741792078062,0.06066409,123.35,123.33,0.0532262]
[1741792078553,8.1091,123.34,123.33,0.0532262]
[1741792079155,55.22517202,123.35,123.27,2.8654]
[1741792079351,55.16450793,123.33,123.24,243.12]
[1741792079660,8.1133,123.28,123.24,243.12]
[1741792079859,55.16450793,123.31,123.2,2.8078]
[1741792080056,55.16450793,123.29,123.2,2.8078]
[1741792080255,55.16450793,123.3,123.19,122.12633046]
[1741792080458,55.16450793,123.25,123.19,122.12633046]
[1741792080657,55.21681582,123.27,123.19,122.12633046]
[1741792080959,55.16450793,123.27,123.19,122.12633046]
[1741792081155,0.06139332,123.24,123.19,122.12633046]
[1741792081549,55.16450793,123.27,123.19,122.12633046]
[1741792081752,8.17220889,123.23,123.19,122.12633046]
[1741792081958,0.05580889,123.23,123.19,122.12633046]
[1741792082656,0.05580889,123.23,123.19,177.29083839]
[1741792083056,2.8635,123.32,123.22,55.16450793]
[1741792083263,243.26,123.4,123.24,55.16450793]
[1741792083264,2.9186,123.37,123.24,55.16450793]
[1741792083560,58.07600793,123.36,123.24,55.16450793]
[1741792083753,2.9115,123.36,123.28,55.16450793]
[1741792083954,195.0,123.45,123.31,55.16450793]
[1741792084150,2.9186,123.41,123.27,55.16450793]
[1741792084354,2.9186,123.41,123.26,243.36]
[1741792084355,0.05926605,123.38,123.28,55.16450793]
[1741792084655,55.16450793,123.4,123.28,55.16450793]
[1741792084854,5.6996,123.41,123.3,55.16450793]
[1741792085051,55.16450793,123.4,123.31,2.95]
[1741792085257,5.6996,123.41,123.27,2.95]
[1741792085454,55.16450793,123.38,123.27,11.0636]
[1741792085653,55.16450793,123.36,123.26,243.36]
[1741792085861,55.16450793,123.36,123.26,246.31]
[1741792086058,0.05650751,123.32,123.26,246.31]
[1741792086364,0.05650751,123.32,123.29,55.16450793]
[1741792086663,5.6996,123.41,123.33,8.1092]
[1741792086860,55.16450793,123.4,123.29,55.16450793]
[1741792087359,5.6996,123.41,123.31,55.16450793]
[1741792087753,0.05298247,123.37,123.35,0.05298017]
[1741792088152,8.1089,123.35,123.27,55.16450793]
[1741792088356,8.1089,123.35,123.27,58.10000793]
[1741792088555,8.1111,123.31,123.3,0.05848238]
[1741792088760,0.05278144,123.32,123.21,55.16450793]
[1741792088963,2.9036,123.32,123.22,2.9524]
[1741792089166,2.9036,123.32,123.23,55.16450793]
[1741792089366,2.9036,123.32,123.26,8.1138]
[1741792089666,2.9036,123.32,123.23,55.16450793]
[1741792089859,5.7458,123.34,123.22,36.3531066]
[1741792089860,2.8347,123.34,123.25,55.16450793]
[1741792090062,0.06091634,123.3,123.25,55.16450793]
[1741792090366,0.06091634,123.3,123.24,8.1152]
[1741792090668,2.8347,123.34,123.24,8.1152]
[1741792090862,0.06159535,123.28,123.22,36.3531066]
[1741792091264,55.16450793,123.25,123.22,33.4007066]
[1741792091465,63.28080793,123.23,123.22,33.4007066]
[1741792091665,55.16450793,123.23,123.16,33.4007066]
[1741792092065,2.7516,123.24,123.16,33.4007066]
[1741792092367,0.05444737,123.21,123.18,55.16450793]
[1741792092567,0.05444737,123.21,123.19,13.7395]
[1741792092757,57.91610793,123.31,123.19,5.6205]
[1741792092956,57.91610793,123.31,123.2,55.16450793]
[1741792092957,8.1135,123.28,123.2,55.16450793]
[1741792093160,57.91610793,123.31,123.2,55.16450793]
[1741792093458,55.16450793,123.27,123.19,5.6205]
[1741792093662,55.16450793,123.29,123.19,5.6205]
[1741792093863,55.16450793,123.29,123.15,88.72562386]
[1741792093864,55.16450793,123.24,123.15,88.72562386]
[1741792094058,8.1191,123.19,123.15,2.9442]
[1741792094265,0.06090547,123.21,123.18,0.05316468]
[1741792094465,8.119,123.19,123.18,0.05316468]
[1741792094668,0.05316433,123.21,123.18,0.05316468]
[1741792094861,0.05316433,123.21,123.11,33.4007066]
[1741792094862,55.16450793,123.2,123.11,33.4007066]
[1741792095171,55.16450793,123.21,123.11,33.4007066]
[1741792095569,8.121,123.16,123.11,33.4007066]
[1741792095769,55.16450793,123.19,123.11,33.4007066]
[1741792095965,0.05223694,123.15,123.11,33.4007066]
[1741792097162,8.17423694,123.15,123.1,8.1247]
[1741792097369,8.17423694,123.15,123.09,2.9442]
[1741792097370,0.05223694,123.15,123.09,2.9442]
[1741792097670,0.05223694,123.15,123.14,8.1223]
[1741792097867,0.05223694,123.15,123.1,55.16450793]
[1741792098265,0.05223694,123.15,123.09,2.9442]
[1741792098573,0.05223694,123.15,123.09,58.10870793]
[1741792098775,0.05223694,123.15,123.12,55.16450793]
[1741792099169,0.05223694,123.15,123.1,55.16450793]
[1741792099369,0.05223694,123.15,123.09,2.9442]
[1741792099672,0.05223694,123.15,123.12,55.16450793]
[1741792099863,5.5398,123.23,123.12,55.16450793]
[1741792100267,8.1193,123.19,123.15,8.1212]
[1741792100462,55.16450793,123.22,123.1,56.57756244]
[1741792100670,55.16450793,123.22,123.1,55.16450793]
[1741792100865,55.16450793,123.2,123.09,2.9442]
[1741792101067,0.0590718,123.17,123.15,0.06088719]
[1741792101477,8.1249,123.11,123.06,8.46957]
[1741792101667,8.1249,123.11,123.06,0.34227]
[1741792101863,55.16450793,123.13,123.06,0.34227]
[1741792102469,8.1247,123.11,123.06,8.46927]
[1741792102672,0.0544349,123.11,123.06,0.34227]
[1741792102970,8.1791349,123.11,123.06,0.34227]
[1741792103273,0.0544349,123.11,123.06,0.34227]
[1741792103972,0.0544349,123.11,123.08,55.16450793]
[1741792104170,0.0544349,123.11,123.1,8.1249]
[1741792104379,2.897,123.2,123.09,243.64]
[1741792104573,2.7209,123.23,123.12,55.16450793]
[1741792104771,247.16450793,123.3,123.13,2.9834]
[1741792104772,164.63161245,123.24,123.13,2.9834]
[1741792104972,58.06150793,123.27,123.15,55.16450793]
[1741792105172,8.1182,123.21,123.16,8.1204]
[1741792105369,0.05714558,123.2,123.13,5.7159]
[1741792105577,0.05714558,123.2,123.17,0.05665448]
[1741792106477,55.22165351,123.2,123.13,2.8668]
[1741792106677,0.05714558,123.2,123.13,2.8668]
[1741792107076,0.05714558,123.2,123.13,58.03130793]
[1741792107278,0.05714558,123.2,123.16,8.1205]
[1741792107473,0.05714558,123.2,123.13,2.8668]
[1741792107775,8.1194,123.19,123.14,8.122]
[1741792107980,0.05714558,123.2,123.13,2.8668]
[1741792108375,55.16450793,123.19,123.1,2.7219]
[1741792108578,0.05973126,123.18,123.1,2.7219]
[1741792108877,2.8669,123.24,123.14,55.16450793]
[1741792109084,2.8669,123.24,123.16,55.16450793]
[1741792109274,0.06037565,123.2,123.15,2.8107]
[1741792109979,2.7972,123.26,123.16,55.16450793]
[1741792110281,55.16450793,123.31,123.2,55.16450793]
[1741792110473,8.1129,123.29,123.21,2.8469]
[1741792110675,55.16450793,123.31,123.21,2.8469]
[1741792110979,8.111,123.32,123.22,2.8107]
[1741792111178,0.06037054,123.27,123.25,0.05961059]
[1741792111386,8.232,123.34,123.25,0.05961059]
[1741792111682,2.6609,123.34,123.25,55.16450793]
[1741792111874,5.5354,123.4,123.27,55.16450793]
[1741792112069,2.8795,123.39,123.29,55.16450793]
[1741792112475,0.05342392,123.35,123.33,0.05964855]
[1741792113786,28.19,123.42,123.33,0.05964855]
[1741792113986,28.19,123.42,123.33,55.22415648]
[1741792114281,8.1054,123.4,123.34,8.1086]
[1741792114480,28.19,123.42,123.32,243.52]
[1741792114986,8.1053,123.4,123.32,243.52]
[1741792115189,0.05440624,123.38,123.36,0.05838761]
[1741792118182,28.19,123.42,123.36,0.05838761]
[1741792118689,28.19,123.42,123.38,8.106]
[1741792118879,28.19,123.42,123.36,0.05838761]
[1741792119086,2.8795,123.45,123.35,55.16450793]
[1741792119485,0.06001511,123.4,123.38,0.05373045]
[1741792119789,5.6727,123.52,123.4,8.1047]
[1741792119790,8.1014,123.46,123.4,8.1047]
[1741792119987,57.88340793,123.51,123.38,55.21823838]
[1741792120183,57.88340793,123.51,123.38,55.16450793]
[1741792120784,8.1627879,123.46,123.43,0.06102246]
[1741792121089,0.0609879,123.46,123.43,0.06102246]
[1741792121291,0.0609879,123.46,123.38,55.16450793]
[1741792121592,0.0609879,123.46,123.43,0.0598424]
[1741792121784,2.7189,123.51,123.43,0.0598424]
[1741792121981,0.06048743,123.46,123.43,8.1025]
[1741792122387,0.06048743,123.46,123.4,55.16450793]
[1741792122586,0.06048743,123.46,123.43,0.06118519]
[1741792124184,55.16450793,123.53,123.43,63.32569312]
[1741792124391,55.16450793,123.55,123.43,55.22569312]
[1741792124592,55.16450793,123.53,123.41,57.96370793]
[1741792124788,55.16450793,123.53,123.44,8.1021]
[1741792124983,55.16450793,123.53,123.42,2.7111]
[1741792125188,55.16450793,123.55,123.43,55.16450793]
[1741792125379,8.0975,123.52,123.47,8.1004]
[1741792125584,0.0520744,123.49,123.46,0.05289222]
[1741792125995,55.16450793,123.55,123.43,55.16450793]
[1741792126195,0.05732892,123.49,123.46,0.0550623]
[1741792126493,0.05732892,123.49,123.47,8.1001]
[1741792126695,55.16450793,123.55,123.45,55.16450793]
[1741792126887,0.05927439,123.49,123.47,0.05472814]
[1741792127082,0.05927439,123.49,123.48,8.0994]
[1741792127285,8.352,123.58,123.47,243.2]
[1741792127482,8.0942,123.57,123.51,8.0973]
[1741792127686,63.51650793,123.58,123.48,55.16450793]
[1741792128283,63.51650793,123.58,123.49,2.6839]
[1741792128795,0.05276103,123.55,123.52,0.05720448]
[1741792129695,8.0962,123.54,123.52,0.05720448]
[1741792130189,8.096,123.54,123.52,0.05720448]
[1741792130584,0.05276103,123.55,123.52,0.05720448]
[1741792130789,8.0966,123.53,123.52,0.05720448]
[1741792130986,0.05276103,123.55,123.52,0.05720448]
[1741792131389,8.0966,123.53,123.52,0.05720448]
[1741792131792,8.0961,123.54,123.52,0.05720448]
[1741792131989,0.05276103,123.55,123.52,0.05720448]
[1741792132194,0.05276103,123.55,123.47,243.2]
[1741792132496,55.16450793,123.57,123.47,243.2]
[1741792132894,8.0944,123.57,123.49,55.16450793]
[1741792133094,8.352,123.58,123.49,55.16450793]